lending/lending_fUSD_20260306
["ID","MTS","AMOUNT","RATE_DAILY","PERIOD"]
[407797367,1772807364227,-309.00525913,0.00015471,2]
[407797368,1772807364252,-0.43756615,0.00015475,2]
[407797381,1772807432220,-567.0,0.00014,2]
[407797382,1772807432230,-250.0,0.000154,2]
[407797383,1772807432239,-281.44918097,0.000154,2]
[407797384,1772807432249,-279.0,0.00015475,2]
[407797385,1772807432258,-290.46024505,0.00015475,2]
[407797386,1772807432270,-3709.1021888,0.00015475,2]
[407797387,1772807432279,-1200.0,0.00015495,2]
[407797388,1772807432288,-589.2178112,0.00015496,2]
[407797389,1772807432299,-5796.3021888,0.00015496,2]
[407797390,1772807432308,-588.80300768,0.00015581,3]
[407797391,1772807432317,-200.0,0.0001559,2]
[407797392,1772807432332,-435.25,0.00015612,2]
[407797393,1772807432342,-500.0,0.0001578,2]
[407797394,1772807432351,-3240.0,0.00015847,2]
[407797395,1772807432361,-703.57901032,0.00015851,2]
[407797396,1772807432371,-4000.0,0.00015862,2]
[407797397,1772807432380,-207.87,0.00015903,2]
[407797398,1772807432389,-200.0,0.00015995,2]
[407797399,1772807432721,-500.0,0.0001604,2]
[407797400,1772807432732,-150.0,0.00016053,7]
[407797401,1772807432741,-162.608687,0.00016053,7]
[407797402,1772807432750,-175.217375,0.00016053,7]
[407797403,1772807432761,-187.826063,0.00016053,7]
[407797404,1772807432771,-200.434751,0.00016053,7]
[407797405,1772807432781,-213.043439,0.00016053,7]
[407797406,1772807432790,-225.652127,0.00016053,7]
[407797407,1772807432800,-238.260815,0.00016053,7]
[407797408,1772807432809,-250.869503,0.00016053,7]
[407797409,1772807432819,-263.478191,0.00016053,7]
[407797410,1772807432828,-2879.99,0.0001612,2]
[407797411,1772807432837,-255.0,0.00016149,2]
[407797412,1772807432846,-150.0,0.0001615,7]
[407797413,1772807432855,-165.806359,0.0001615,7]
[407797414,1772807432865,-181.612719,0.0001615,7]
[407797415,1772807432875,-197.419078,0.0001615,7]
[407797416,1772807432886,-213.225438,0.0001615,7]
[407797417,1772807432896,-229.031798,0.0001615,7]
[407797418,1772807432905,-244.838157,0.0001615,7]
[407797419,1772807432914,-260.644517,0.0001615,7]
[407797420,1772807432923,-150.0,0.0001615,7]
[407797421,1772807432933,-276.450877,0.0001615,7]
[407797422,1772807432942,-194.944044,0.0001615,7]
[407797423,1772807432951,-292.257236,0.0001615,7]
[407797424,1772807432960,-239.888089,0.0001615,7]
[407797425,1772807432970,-284.832134,0.0001615,7]
[407797426,1772807432979,-329.776178,0.0001615,7]
[407797427,1772807432988,-374.720223,0.0001615,7]
[407797428,1772807432998,-419.664268,0.0001615,7]
[407797429,1772807433008,-464.608312,0.0001615,7]
[407797430,1772807433017,-509.552357,0.0001615,7]
[407797431,1772807433027,-554.496402,0.0001615,7]
[407797432,1772807433036,-205.88,0.0001615,2]
[407797433,1772807433045,-1321.02,0.00016226,2]
[407797434,1772807433054,-4000.0,0.00016249,2]
[407797435,1772807433064,-1733.66,0.00016284,2]
[407797436,1772807433077,-205.88,0.00016424,2]
[407797437,1772807433086,-435.25,0.00016479,2]
[407797438,1772807433096,-1000.0,0.00016588,2]
[407797439,1772807433105,-1000.0,0.00016635,2]
[407797440,1772807433115,-4000.0,0.00016636,2]
[407797441,1772807433125,-3342.99322125,0.00016669,2]
[407797442,1772807433134,-500.0,0.00016673,2]
[407797443,1772807433144,-538.31254321,0.00016673,2]
[407797444,1772807433154,-500.0,0.00016673,2]
[407797445,1772807433163,-500.0,0.00016673,2]
[407797446,1772807433172,-500.0,0.00016673,2]
[407797447,1772807433183,-500.0,0.00016673,2]
[407797448,1772807433193,-500.0,0.00016673,2]
[407797449,1772807433202,-500.0,0.00016673,2]
[407797450,1772807433212,-205.88,0.00016698,2]
[407797451,1772807433221,-12147.52667886,0.00016698,2]
[407797452,1772807433231,-1000.0,0.00016698,2]
[407797453,1772807433241,-32912.143,0.00016698,2]
[407797454,1772807433252,-2500.0,0.00016699,2]
[407797455,1772807433262,-661.24101788,0.00016746,2]
[407797456,1772807433280,-500.0,0.00016773,2]
[407797457,1772807433293,-235.21838039,0.00016773,2]
[407797458,1772807433303,-184.94185274,0.00016773,2]
[407797459,1772807433312,-500.0,0.00016773,2]
[407797460,1772807433325,-500.0,0.00016773,2]
[407797461,1772807433335,-500.0,0.00016773,2]
[407797462,1772807433346,-475.27,0.00016773,2]
[407797463,1772807433356,-6407.997,0.00016773,2]
[407797464,1772807433366,-10884.74200385,0.00016773,2]
[407797465,1772807433376,-162.43547835,0.00016773,2]
[407797466,1772807433385,-275.42173016,0.00016773,2]
[407797467,1772807433395,-254.1445637,0.00016773,2]
[407797468,1772807433404,-500.0,0.00016789,2]
[407797469,1772807433414,-500.0,0.00016789,2]
[407797470,1772807433424,-500.0,0.00016789,2]
[407797471,1772807433434,-500.0,0.00016789,2]
[407797472,1772807433444,-500.0,0.00016789,2]
[407797473,1772807433453,-500.0,0.00016789,2]
[407797474,1772807433463,-500.0,0.00016789,2]
[407797475,1772807433473,-202.72622012,0.00016789,2]
[407797476,1772807433482,-500.0,0.00016789,2]
[407797477,1772807433491,-500.0,0.00016789,2]
[407797478,1772807433501,-500.0,0.00016789,2]
[407797479,1772807433511,-349.59998363,0.00016789,2]
[407797480,1772807433521,-151.0,0.00016789,2]
[407797481,1772807433532,-151.0,0.00016789,2]
[407797482,1772807433544,-151.0,0.00016789,2]
[407797483,1772807433553,-151.0,0.00016789,2]
[407797484,1772807433563,-151.0,0.00016789,2]
[407797485,1772807433576,-151.0,0.00016789,2]
[407797486,1772807433586,-151.0,0.00016789,2]
[407797487,1772807433595,-151.0,0.00016789,2]
[407797488,1772807433605,-151.0,0.00016789,2]
[407797489,1772807433615,-151.0,0.00016789,2]
[407797490,1772807433625,-151.0,0.00016789,2]
[407797491,1772807433635,-323.2878165,0.00016789,2]
[407797492,1772807433644,-151.0,0.00016796,2]
[407797493,1772807433658,-500.0,0.00016798,2]
[407797494,1772807433668,-500.0,0.00016798,2]
[407797495,1772807433678,-500.0,0.00016798,2]
[407797496,1772807433688,-500.0,0.00016798,2]
[407797497,1772807433698,-500.0,0.00016798,2]
[407797498,1772807433707,-500.0,0.00016798,2]
[407797499,1772807433719,-500.0,0.00016798,2]
[407797500,1772807433729,-455.75080664,0.00016798,2]
[407797501,1772807433739,-500.0,0.00016798,2]
[407797502,1772807433749,-286.26710166,0.00016798,2]
[407797503,1772807433758,-356.82500062,0.00016798,2]
[407797504,1772807433768,-308.64470608,0.00016798,2]
[407797505,1772807433778,-500.0,0.00016798,2]
[407797506,1772807433787,-500.0,0.00016798,2]
[407797507,1772807433797,-500.0,0.00016798,2]
[407797508,1772807433809,-179.39145694,0.00016798,2]
[407797509,1772807433819,-472.89681009,0.00016798,2]
[407797510,1772807433832,-496.22035025,0.00016798,2]
[407797511,1772807433842,-500.0,0.00016798,2]
[407797512,1772807433852,-491.87148293,0.00016798,2]
[407797513,1772807433862,-500.0,0.00016798,2]
[407797514,1772807433874,-197.93014287,0.00016798,2]
[407797515,1772807433884,-500.0,0.00016798,2]
[407797516,1772807433894,-215.82300736,0.00016798,2]
[407797517,1772807433903,-500.0,0.00016798,2]
[407797518,1772807433913,-500.0,0.00016798,2]
[407797519,1772807433923,-500.0,0.00016798,2]
[407797520,1772807433933,-500.0,0.00016798,2]
[407797521,1772807433942,-500.0,0.00016798,2]
[407797522,1772807433952,-500.0,0.00016798,2]
[407797523,1772807433962,-500.0,0.00016798,2]
[407797524,1772807433972,-500.0,0.00016798,2]
[407797525,1772807433982,-500.0,0.00016798,2]
[407797526,1772807433992,-500.0,0.00016798,2]
[407797527,1772807434002,-500.0,0.00016798,2]
[407797528,1772807434012,-500.0,0.00016798,2]
[407797529,1772807434026,-500.0,0.00016798,2]
[407797530,1772807434036,-500.0,0.00016798,2]
[407797531,1772807434046,-500.0,0.00016798,2]
[407797532,1772807434056,-500.0,0.00016798,2]
[407797533,1772807434066,-500.0,0.00016798,2]
[407797534,1772807434077,-500.0,0.00016798,2]
[407797535,1772807434087,-500.0,0.00016798,2]
[407797536,1772807434097,-500.0,0.00016798,2]
[407797537,1772807434107,-1008.35756595,0.00016798,5]
[407797538,1772807434116,-500.0,0.00016798,2]
[407797539,1772807434126,-500.0,0.00016798,2]
[407797540,1772807434136,-283.81037588,0.00016798,2]
[407797541,1772807434146,-500.0,0.00016798,2]
[407797542,1772807434156,-500.0,0.00016798,2]
[407797543,1772807434166,-431.19033015,0.00016798,2]
[407797544,1772807434176,-1313440.47641339,0.00016799,2]
[407797545,1772807434193,-253983.45557296,0.00016799,2]
[407797546,1772807434206,-364941.79138991,0.00016799,2]
[407797547,1772807434230,-1254.41808677,0.00016799,2]
[407797548,1772807434300,-312.7,0.00016799,2]
[407797549,1772807434312,-558.27538772,0.00016799,2]
[407797550,1772807434344,-323.0,0.00016799,2]
[407797556,1772807438633,-2617.21,0.00014204,2]
[407797557,1772807438643,-200.0,0.00015346,2]
[407797558,1772807438652,-565185.88314925,0.00016799,2]
[407797559,1772807438661,-2725.86108145,0.00016839,2]
[407797560,1772807438671,-157.40983265,0.00016839,2]
[407797561,1772807438680,-500.62982044,0.00016873,2]
[407797562,1772807438690,-2500.0,0.00016939,2]
[407797563,1772807438699,-2500.0,0.00016939,2]
[407797564,1772807438708,-2500.0,0.00016939,2]
[407797565,1772807438718,-2500.0,0.00016939,2]
[407797566,1772807438727,-2500.0,0.00016939,2]
[407797568,1772807438736,-250.0,0.00016939,2]
[407797570,1772807438744,-600.0,0.00016939,2]
[407797572,1772807438754,-1512.01,0.00016999,2]
[407797574,1772807438764,-1512.01,0.00016999,30]
[407797576,1772807438773,-682.34,0.00016999,2]
[407797577,1772807438782,-361.3,0.00017,2]
[407797579,1772807438791,-1107.9,0.00017,2]
[407797582,1772807438800,-304.71,0.00017,2]
[407797585,1772807438810,-304.71,0.00017,7]
[407797589,1772807438819,-4000.0,0.00017023,2]
[407797591,1772807438830,-1680.0,0.00017036,2]
[407797592,1772807438840,-1090.71850945,0.00017043,3]
[407797594,1772807438849,-12147.52667886,0.00017054,2]
[407797597,1772807438859,-10884.74200379,0.0001712,2]
[407797599,1772807438870,-1000.0,0.00017221,2]
[407797601,1772807438879,-1000.0,0.00017221,2]
[407797603,1772807438889,-226.88022743,0.00017221,2]
[407797605,1772807438898,-1001.87803648,0.00017221,2]
[407797607,1772807438907,-1000.0,0.00017221,2]
[407797608,1772807438917,-1000.0,0.00017221,2]
[407797611,1772807438926,-1001.74200983,0.00017221,2]
[407797612,1772807438935,-162.4354783,0.00017294,2]
[407797615,1772807438945,-166.66,0.00017296,2]
[407797616,1772807438955,-1000.0,0.00017321,2]
[407797618,1772807438964,-1000.0,0.00017321,2]
[407797621,1772807438974,-1000.0,0.00017321,2]
[407797622,1772807438983,-1000.0,0.00017321,2]
[407797624,1772807438993,-435.25,0.00017347,2]
[407797627,1772807439000,-254.14456366,0.00017398,2]
[407797629,1772807439009,-12147.52667886,0.0001741,2]
[407797631,1772807439018,-10884.74200379,0.00017468,2]
[407797633,1772807439027,-215.9,0.0001765,2]
[407797635,1772807439037,-12147.52667886,0.00017765,2]
[407797636,1772807439047,-162.4354783,0.00017815,2]
[407797638,1772807439056,-10884.74200379,0.00017815,2]
[407797640,1772807439065,-911.802747,0.00017826,7]
[407797642,1772807439077,-166.66,0.00017867,2]
[407797644,1772807439087,-1500.0,0.00017868,2]
[407797645,1772807439097,-1500.0,0.00017868,2]
[407797646,1772807439106,-1000.0,0.00017868,2]
[407797647,1772807439116,-1500.0,0.00017868,2]
[407797648,1772807439126,-150.0,0.00017955,7]
[407797649,1772807439135,-239.515899,0.00017955,7]
[407797650,1772807439144,-329.031798,0.00017955,7]
[407797651,1772807439154,-418.547697,0.00017955,7]
[407797652,1772807439163,-508.063596,0.00017955,7]
[407797653,1772807439173,-597.579495,0.00017955,7]
[407797654,1772807439182,-687.095394,0.00017955,7]
[407797655,1772807439191,-776.611293,0.00017955,7]
[407797656,1772807439201,-866.127192,0.00017955,7]
[407797657,1772807439211,-955.643091,0.00017955,7]
[407797658,1772807439221,-172.74325605,0.00017955,7]
[407797659,1772807439230,-160.0,0.00017955,7]
[407797660,1772807439240,-500.0,0.00018,2]
[407797661,1772807439249,-254.14456366,0.00018024,2]
[407797662,1772807439259,-12147.52667886,0.00018121,2]
[407797663,1772807439268,-10884.74200379,0.00018163,2]
[407797664,1772807439278,-435.25,0.00018214,2]
[407797665,1772807439287,-162.4354783,0.00018337,2]
[407797666,1772807439296,-275.42173016,0.00018337,2]
[407797667,1772807439306,-2725.86108144,0.0001837,2]
[407797668,1772807439315,-2000.0,0.00018416,2]
[407797669,1772807439324,-2000.0,0.00018416,2]
[407797670,1772807439334,-1778.57186039,0.00018416,2]
[407797671,1772807439344,-166.66,0.00018438,2]
[407797672,1772807439354,-12147.52667886,0.00018477,2]
[407797673,1772807439363,-1592.63401122,0.00018504,4]
[407797674,1772807439373,-10884.74200379,0.0001851,2]
[407797675,1772807439382,-254.14456366,0.00018649,2]
[407797676,1772807439391,-2351.0,0.00018729,2]
[407797677,1772807439400,-4360.19,0.00018758,2]
[407797678,1772807439409,-500.0,0.00018764,2]
[407797679,1772807439420,-500.0,0.00018764,2]
[407797680,1772807439429,-12147.52667886,0.00018833,2]
[407797681,1772807439439,-162.4354783,0.00018858,2]
[407797682,1772807439448,-10884.74200379,0.00018858,2]
[407797683,1772807439457,-1680.57628362,0.00018964,2]
[407797684,1772807439467,-2500.0,0.00018964,2]
[407797685,1772807439476,-1500.0,0.00018973,2]
[407797686,1772807439487,-5026.57882922,0.00019,2]
[407797687,1772807439496,-5000.0,0.00019,2]
[407797688,1772807439505,-5000.0,0.00019,2]
[407797689,1772807439515,-166.66,0.00019009,2]
[407797690,1772807439526,-435.25,0.00019081,2]
[407797691,1772807439546,-12147.52667886,0.00019188,2]
[407797692,1772807439556,-10884.74200379,0.00019205,2]
[407797693,1772807439566,-168.0,0.00019256,2]
[407797694,1772807439575,-2584.238694,0.00019264,7]
[407797695,1772807439587,-254.14456366,0.00019275,2]
[407797696,1772807439597,-847.0,0.0001936,2]
[407797697,1772807439608,-162.4354783,0.00019379,2]
[407797698,1772807439618,-2764.107729,0.0001938,7]
[407797699,1772807439630,-4403.102514,0.0001938,7]
[407797700,1772807439640,-168.0,0.0001945,2]
[407797701,1772807439650,-168.0,0.00019455,2]
[407797702,1772807439660,-3000.0,0.00019512,2]
[407797703,1772807439670,-12147.52667886,0.00019544,2]
[407797704,1772807439680,-10884.74200379,0.00019553,2]
[407797705,1772807439690,-166.66,0.0001958,2]
[407797706,1772807439700,-168.0,0.00019582,2]
[407797707,1772807439710,-248.0,0.00019632,2]
[407797708,1772807439720,-160.0,0.0001968,2]
[407797709,1772807439731,-168.0,0.00019711,2]
[407797710,1772807439740,-160.0,0.00019752,2]
[407797711,1772807439750,-172.74325605,0.00019752,2]
[407797712,1772807439760,-2148.8308,0.000199,2]
[407797713,1772807439770,-25000.0,0.000199,3]
[407797714,1772807439781,-172.74325605,0.000199,3]
[407797715,1772807439790,-1058.11044493,0.000199,2]
[407797716,1772807439799,-162.4354783,0.000199,2]
[407797717,1772807439808,-12147.52667886,0.000199,2]
[407797718,1772807439817,-10884.74200379,0.000199,2]
[407797719,1772807439828,-275.42173016,0.000199,2]
[407797720,1772807439837,-254.14456366,0.000199,2]
[407797721,1772807439846,-2725.86108144,0.000199,2]
[407797722,1772807439855,-157.40983265,0.000199,2]
[407797723,1772807439865,-435.25,0.00019949,2]
[407797724,1772807439874,-168.0,0.00019958,2]
[407797725,1772807439883,-1897.7989557,0.00019966,8]
[407797726,1772807439892,-150.0,0.00019973,2]
[407797727,1772807439903,-500.0,0.00019973,2]
[407797728,1772807439912,-494.64624274,0.00019973,2]
[407797729,1772807439921,-500.0,0.00019973,2]
[407797730,1772807439930,-150.0,0.00019973,2]
[407797731,1772807439939,-682.34,0.00019979,2]
[407797732,1772807439949,-534.41020395,0.0001998,2]
[407797733,1772807439958,-323.2878165,0.0001999,2]
[407797734,1772807439967,-323.2878165,0.0001999,2]
[407797735,1772807440260,-151.0,0.00019997,2]
[407797736,1772807440271,-529.79977508,0.00019998,2]
[407797737,1772807440281,-500.0,0.00019998,2]
[407797738,1772807440290,-500.0,0.00019998,2]
[407797739,1772807440299,-300.0,0.00019999,2]
[407797740,1772807440309,-672.22275366,0.00019999,2]
[407797741,1772807440318,-300.0,0.00019999,2]
[407797742,1772807440328,-666.0,0.00019999,2]
[407797743,1772807440337,-300.0,0.00019999,2]
[407797744,1772807440347,-300.0,0.00019999,2]
[407797745,1772807440356,-93141.3863232,0.00019999,2]
[407797746,1772807440365,-1036.32016175,0.00019999,5]
[407797747,1772807440374,-4060.5384716,0.00019999,2]
[407797748,1772807440384,-7796.9081735,0.00019999,2]
[407797749,1772807440395,-21862.0510743,0.00019999,2]
[407797750,1772807440405,-500.0,0.00019999,2]
[407797751,1772807440415,-641.1882162,0.00019999,2]
[407797752,1772807440424,-500.0,0.00019999,2]
[407797753,1772807440434,-500.0,0.00019999,2]
[407797755,1772807440443,-209.68475892,0.00019999,2]
[407797757,1772807440453,-682.34,0.00019999,2]
[407797758,1772807440463,-682.34,0.00019999,2]
[407797760,1772807440472,-682.34,0.00019999,2]
[407797762,1772807440482,-682.34,0.00019999,2]
[407797763,1772807440492,-682.34,0.00019999,2]
[407797764,1772807440502,-682.34,0.00019999,2]
[407797765,1772807440513,-682.34,0.00019999,2]
[407797766,1772807440523,-682.34,0.00019999,2]
[407797767,1772807440533,-682.34,0.00019999,2]
[407797768,1772807440543,-682.34,0.00019999,2]
[407797769,1772807440558,-682.34,0.00019999,2]
[407797770,1772807440567,-682.34,0.00019999,2]
[407797771,1772807440579,-682.34,0.00019999,2]
[407797772,1772807440588,-682.34,0.00019999,2]
[407797773,1772807440598,-682.34,0.00019999,2]
[407797774,1772807440607,-682.34,0.00019999,2]
[407797775,1772807440618,-682.34,0.00019999,2]
[407797776,1772807440628,-682.34,0.00019999,2]
[407797777,1772807440639,-682.34,0.00019999,2]
[407797778,1772807440650,-682.34,0.00019999,2]
[407797779,1772807440660,-682.34,0.00019999,2]
[407797780,1772807440669,-682.4,0.00019999,2]
[407797781,1772807440679,-500.0,0.00019999,2]
[407797782,1772807440688,-500.0,0.00019999,2]
[407797783,1772807440697,-500.0,0.00019999,2]
[407797784,1772807440706,-2708.6540251,0.00019999,2]
[407797785,1772807440716,-155.0,0.00019999,2]
[407797786,1772807440725,-150.0,0.00019999,2]
[407797787,1772807440734,-183.31183954,0.00019999,2]
[407797788,1772807440743,-6584195.63789672,0.0002,2]
[407797793,1772807442874,-6198.63328687,0.0002,2]
[407797794,1772807442887,-621.90193668,0.0002,2]
[407797795,1772807443008,-1786.5,0.0002,2]
[407797796,1772807443062,-6602721.84227682,0.0002,2]
[407797797,1772807443072,-1474.82784586,0.0002,5]
[407797798,1772807443082,-1739322.17294564,0.0002,2]
[407797802,1772807443213,-13784.3,0.0002,2]
[407797803,1772807445221,-172.74325605,0.0001938,7]
[407797804,1772807445231,-452.74019978,0.0002,2]
[407797805,1772807445243,-1402.93188201,0.0002,2]
[407797831,1772807446966,-675.0,0.0002,2]
[407797832,1772807447379,-11708.27104002,0.0002,2]
[407797833,1772807447390,-402.08000001,0.0002,2]
[407797834,1772807447436,-2069.27232054,0.0002,2]
[407797835,1772807447447,-1039.35,0.0002,2]
[407797836,1772807447462,-491.50350013,0.0002,2]
[407797843,1772808046223,165.22,0.00012054,2]
[407797844,1772808109553,-265.0,0.00014,2]
[407797845,1772808114016,542.0,0.00014,2]
[407797846,1772808124509,-165.22,0.00014063,2]
[407797847,1772808248565,10000.01,0.00013,30]
[407797848,1772808248589,10000.01,0.00013,30]
[407797849,1772808248611,4683.64754969,0.00013,30]
[407797850,1772808348205,-200.0,0.00014384,2]
[407797851,1772808348225,-517.10121474,0.00014534,2]
[407797852,1772808348245,-200.0,0.00014685,2]
[407797853,1772808348264,-200.0,0.00014685,2]
[407797854,1772808348284,-200.0,0.00014808,2]
[407797855,1772808348660,-250.0,0.00015,2]
[407797856,1772808348681,-58.42909326,0.00015211,2]
[407797860,1772808422283,192.66985045,0.00014444,2]
[407797861,1772808482540,543.0,0.00014,2]
[407797862,1772808608272,1435.860729,7.945e-05,2]
[407797873,1772808631440,-275.0,0.0001503,2]
[407797874,1772808631450,-360.79,0.0001503,2]
[407797875,1772808631459,-175.5040556,0.00015054,2]
[407797876,1772808631470,-300.0,0.0001506,2]
[407797877,1772808631479,-1200.0,0.0001506,2]
[407797878,1772808631489,-300.0,0.0001506,2]
[407797879,1772808631499,-1493.78022829,0.00015061,2]
[407797880,1772808631513,-3506.21977171,0.00015061,2]
[407797881,1772808631522,-600.0,0.00015061,2]
[407797882,1772808631532,-300.0,0.00015092,2]
[407797883,1772808631541,-500.0,0.00015092,2]
[407797884,1772808631551,-300.0,0.00015141,2]
[407797885,1772808631560,-267.37441405,0.00015141,2]
[407797886,1772808631569,-500.0,0.0001515,2]
[407797887,1772808631578,-500.0,0.0001515,2]
[407797888,1772808631587,-500.0,0.0001515,2]
[407797889,1772808631596,-500.0,0.0001515,2]
[407797890,1772808631606,-500.0,0.0001515,2]
[407797891,1772808631615,-226.88022743,0.0001515,2]
[407797892,1772808631624,-1321.53,0.00015154,2]
[407797894,1772808631633,-5000.0,0.00015169,2]
[407797896,1772808631643,-250.0,0.00015169,2]
[407797898,1772808631652,-500.0,0.00015184,2]
[407797920,1772808631661,-200.0,0.00015192,2]
[407797921,1772808631991,-300.0,0.0001521,2]
[407797922,1772808632001,-300.0,0.0001521,2]
[407797923,1772808632013,-8676.41090674,0.00015211,2]
[407797924,1772808632024,-500.0,0.00015299,2]
[407797925,1772808632035,-300.0,0.000154,2]
[407797926,1772808632045,-193.0,0.000154,2]
[407797927,1772808632055,-540.75623666,0.000154,2]
[407797928,1772808632065,-500.0,0.000154,2]
[407797929,1772808632076,-500.0,0.000154,2]
[407797930,1772808632086,-1852.42,0.0001546,2]
[407797931,1772808632095,-881.03,0.00015471,2]
[407797932,1772808632105,-368.28,0.000155,2]
[407797933,1772808632114,-244.0,0.00015501,2]
[407797934,1772808632123,-2000.0,0.000156,2]
[407797935,1772808632133,-501.87803648,0.00015698,2]
[407797936,1772808632142,-1000.0,0.00015698,2]
[407797937,1772808632152,-501.74200983,0.00015698,2]
[407797938,1772808632161,-1000.0,0.00015698,2]
[407797939,1772808632170,-2000.0,0.000157,2]
[407797940,1772808632181,-2000.0,0.000158,2]
[407797941,1772808632190,-250.0,0.00015822,2]
[407797942,1772808632200,-2000.0,0.000159,2]
[407797943,1772808632210,-492.56619301,0.0001591,2]
[407797944,1772808632219,-1321.53,0.00015912,2]
[407797945,1772808632229,-500.0,0.00015948,2]
[407797946,1772808632239,-500.0,0.00015948,2]
[407797947,1772808632249,-2000.0,0.00016,2]
[407797948,1772808632259,-165.22,0.00016072,2]
[407797949,1772808632269,-2000.0,0.000161,2]
[407797950,1772808632278,-10932.77401101,0.00016123,2]
[407797951,1772808632287,-550.0,0.00016138,2]
[407797952,1772808632297,-150.0,0.00016139,2]
[407797953,1772808632308,-1600.0,0.00016139,2]
[407797954,1772808632317,-2000.0,0.000162,2]
[407797955,1772808632326,-500.0,0.00016216,2]
[407797956,1772808632336,-214.68428333,0.00016216,2]
[407797957,1772808632346,-500.0,0.00016216,2]
[407797958,1772808632355,-500.0,0.00016216,2]
[407797959,1772808632365,-150.0,0.00016216,2]
[407797960,1772808632374,-500.0,0.00016216,2]
[407797961,1772808632384,-500.0,0.00016216,2]
[407797962,1772808632393,-500.0,0.00016216,2]
[407797963,1772808632403,-150.0,0.00016216,2]
[407797964,1772808632412,-150.0,0.00016216,2]
[407797965,1772808632422,-500.0,0.00016216,2]
[407797966,1772808632432,-800.0,0.00016216,2]
[407797967,1772808632441,-500.0,0.00016216,2]
[407797968,1772808632451,-150.0,0.00016216,2]
[407797969,1772808632460,-500.0,0.00016216,2]
[407797970,1772808632469,-431.0,0.00016216,2]
[407797971,1772808632479,-1139.0,0.00016216,2]
[407797972,1772808632488,-150.0,0.00016216,2]
[407797973,1772808632498,-150.0,0.00016216,2]
[407797974,1772808632508,-151.0,0.00016216,2]
[407797975,1772808632520,-500.0,0.00016216,2]
[407797976,1772808632531,-500.0,0.00016216,2]
[407797977,1772808632542,-1376.0,0.00016216,2]
[407797978,1772808632552,-524.0,0.00016216,2]
[407797979,1772808632561,-351.25248798,0.00016222,2]
[407797980,1772808632571,-5000.0,0.00016222,2]
[407797981,1772808632581,-11718.12057434,0.00016223,2]
[407797982,1772808632591,-1531.51378373,0.00016223,2]
[407797983,1772808632601,-98323.6477,0.00016223,2]
[407797984,1772808632611,-2500.0,0.00016223,2]
[407797985,1772808632622,-1500.0,0.00016246,2]
[407797986,1772808632633,-173.06622705,0.000163,3]
[407797987,1772808632642,-214.75446758,0.000163,3]
[407797988,1772808632653,-223.46388859,0.000163,3]
[407797989,1772808632664,-223.8610954,0.000163,3]
[407797990,1772808632673,-2000.0,0.000163,2]
[407797991,1772808632683,-529.79977508,0.00016322,2]
[407797992,1772808632693,-500.0,0.00016322,2]
[407797993,1772808632702,-500.0,0.00016322,2]
[407797994,1772808632711,-200.38697116,0.00016322,2]
[407797995,1772808632720,-249.77750044,0.00016322,2]
[407797996,1772808632729,-500.0,0.00016322,2]
[407797997,1772808632738,-616.05129425,0.00016322,2]
[407797998,1772808632747,-500.0,0.00016322,2]
[407797999,1772808632756,-203.02445495,0.00016322,2]
[407798000,1772808632768,-93935.69476761,0.00016323,2]
[407798001,1772808632835,-1677.09514366,0.00016323,2]
[407798002,1772808637454,-3953.7600006,0.000158,2]